fUSD/lending_fUSD_20250507
["ID","MTS","AMOUNT","RATE_DAILY","PERIOD"]
[360158815,1746582642619,-469.59035769,0.00019575,2]
[360158817,1746582642628,-468.54809236,0.00019575,2]
[360158818,1746582642637,-920.95,0.00019575,2]
[360158820,1746582642646,-920.95,0.00019575,2]
[360158823,1746582642655,-922.18,0.00019575,2]
[360158826,1746582642664,-922.18,0.00019575,2]
[360158828,1746582642673,-543.07723015,0.00019575,2]
[360158831,1746582642682,-450.0,0.00019575,2]
[360158834,1746582642692,-450.0,0.00019575,2]
[360158836,1746582642701,-474.61008414,0.00019575,2]
[360158838,1746582642710,-450.0,0.00019575,2]
[360158840,1746582642719,-450.0,0.00019575,2]
[360158842,1746582642728,-450.0,0.00019575,2]
[360158844,1746582642738,-572.61977627,0.00019575,2]
[360158846,1746582642747,-450.0,0.00019575,2]
[360158848,1746582642756,-450.0,0.00019575,2]
[360158849,1746582642766,-456.78989089,0.00019575,2]
[360158850,1746582642782,-450.0,0.00019575,2]
[360158851,1746582642802,-450.0,0.00019575,2]
[360158852,1746582642822,-450.0,0.00019575,2]
[360158853,1746582642841,-450.0,0.00019575,2]
[360158854,1746582642857,-450.0,0.00019575,2]
[360158855,1746582642876,-498.01762168,0.00019575,2]
[360158856,1746582642896,-450.0,0.00019575,2]
[360158857,1746582642917,-476.64034562,0.00019575,2]
[360158858,1746582642934,-483.92544166,0.00019575,2]
[360158859,1746582642953,-450.0,0.00019575,2]
[360158860,1746582642968,-469.38995599,0.00019575,2]
[360158861,1746582642982,-450.0,0.00019575,2]
[360158862,1746582642998,-196.28734497,0.00019575,2]
[360158863,1746582643013,-450.0,0.00019575,2]
[360158864,1746582643028,-520.86205456,0.00019575,2]
[360158865,1746582643045,-1013.85,0.00019575,2]
[360158866,1746582643061,-1013.85,0.00019575,2]
[360158867,1746582643076,-450.0,0.00019575,2]
[360158868,1746582643093,-482.62059361,0.00019575,2]
[360158869,1746582643108,-473.27100035,0.00019575,2]
[360158870,1746582643123,-710.81,0.00019575,2]
[360158872,1746582643138,-710.81,0.00019575,2]
[360158874,1746582643155,-250.0,0.00019575,2]
[360158875,1746582643171,-265.2733661,0.00019575,2]
[360158876,1746582643186,-517.66312193,0.00019575,2]
[360158877,1746582643202,-674.99,0.00019575,2]
[360158878,1746582643216,-674.99,0.00019575,2]
[360158879,1746582643232,-450.0,0.00019575,2]
[360158880,1746582643248,-450.0,0.00019575,2]
[360158881,1746582643267,-474.22714403,0.00019575,2]
[360158882,1746582643282,-450.0,0.00019575,2]
[360158883,1746582643298,-467.5459469,0.00019575,2]
[360158884,1746582643314,-475.91210746,0.00019575,2]
[360158885,1746582643329,-494.31273355,0.00019575,2]
[360158886,1746582643345,-450.0,0.00019575,2]
[360158887,1746582643360,-450.88080791,0.00019575,2]
[360158888,1746582643376,-486.08298204,0.00019575,2]
[360158889,1746582643391,-1240.98,0.00019575,2]
[360158890,1746582643406,-1240.98,0.00019575,2]
[360158891,1746582643421,-450.0,0.00019575,2]
[360158892,1746582643436,-450.0,0.00019575,2]
[360158893,1746582643451,-622.67,0.00019575,2]
[360158894,1746582643466,-207.95257332,0.00019575,2]
[360158895,1746582643481,-989.98,0.00019575,2]
[360158896,1746582643497,-989.98,0.00019575,2]
[360158897,1746582643512,-2065.68,0.00019575,2]
[360158898,1746582643528,-2065.68,0.00019575,2]
[360158899,1746582643543,-1558.39,0.00019575,2]
[360158900,1746582643559,-450.0,0.00019575,2]
[360158901,1746582643579,-450.0,0.00019575,2]
[360158902,1746582643598,-450.0,0.00019575,2]
[360158903,1746582643615,-450.0,0.00019575,2]
[360158904,1746582643631,-450.0,0.00019575,2]
[360158905,1746582643646,-555.77512308,0.00019575,2]
[360158906,1746582643662,-450.0,0.00019575,2]
[360158907,1746582643677,-557.28481762,0.00019575,2]
[360158908,1746582643693,-469.15,0.00019575,2]
[360158909,1746582643708,-469.15,0.00019575,2]
[360158910,1746582643723,-662.42,0.00019575,2]
[360158911,1746582643736,-662.42,0.00019575,2]
[360158912,1746582643752,-515.51,0.00019575,2]
[360158913,1746582643767,-662.42,0.00019575,2]
[360158914,1746582643783,-450.0,0.00019575,2]
[360158915,1746582643794,-1702.78,0.00019575,2]
[360158916,1746582643961,-1702.78,0.00019575,2]
[360158917,1746582643985,-450.0,0.00019575,2]
[360158918,1746582643995,-481.43915994,0.00019575,2]
[360158919,1746582644004,-2037.93,0.00019575,2]
[360158920,1746582644014,-2037.93,0.00019575,2]
[360158921,1746582644023,-739.06,0.00019575,2]
[360158922,1746582644033,-450.0,0.00019575,2]
[360158923,1746582644042,-450.0,0.00019575,2]
[360158924,1746582644051,-575.3104488,0.00019575,2]
[360158925,1746582644061,-576.66329727,0.00019575,2]
[360158926,1746582644071,-450.0,0.00019575,2]
[360158927,1746582644080,-450.0,0.00019575,2]
[360158928,1746582644090,-788.8,0.00019575,2]
[360158929,1746582644099,-450.0,0.00019575,2]
[360158930,1746582644109,-450.0,0.00019575,2]
[360158931,1746582644120,-450.0,0.00019575,2]
[360158932,1746582644129,-450.0,0.00019575,2]
[360158933,1746582644141,-2061.48,0.00019575,2]
[360158934,1746582644151,-450.0,0.00019575,2]
[360158935,1746582644160,-450.0,0.00019575,2]
[360158936,1746582644170,-2061.48,0.00019575,2]
[360158937,1746582644180,-2061.48,0.00019575,2]
[360158938,1746582644190,-1195.37,0.00019575,2]
[360158939,1746582644199,-1195.37,0.00019575,2]
[360158940,1746582644209,-1574.72,0.00019575,2]
[360158941,1746582644218,-1574.72,0.00019575,2]
[360158942,1746582644228,-1574.72,0.00019575,2]
[360158943,1746582644237,-1618.6,0.00019575,2]
[360158944,1746582644247,-450.0,0.00019575,2]
[360158945,1746582644257,-450.0,0.00019575,2]
[360158946,1746582644266,-483.57052231,0.00019575,2]
[360158947,1746582644279,-1065.09,0.00019575,2]
[360158948,1746582644289,-1065.09,0.00019575,2]
[360158949,1746582644298,-2046.98,0.00019575,2]
[360158950,1746582644307,-450.0,0.00019575,2]
[360158951,1746582644318,-450.0,0.00019575,2]
[360158952,1746582644327,-450.0,0.00019575,2]
[360158953,1746582644337,-450.0,0.00019575,2]
[360158954,1746582644347,-450.0,0.00019575,2]
[360158955,1746582644356,-538.23535689,0.00019575,2]
[360158956,1746582644367,-450.0,0.00019575,2]
[360158957,1746582644376,-1520.3,0.00019575,2]
[360158958,1746582644386,-500.47817882,0.00019575,2]
[360158959,1746582644395,-1226.66,0.00019575,2]
[360158960,1746582644404,-1226.66,0.00019575,2]
[360158961,1746582644413,-1226.66,0.00019575,2]
[360158962,1746582644423,-558.85,0.00019575,2]
[360158963,1746582644431,-558.85,0.00019575,2]
[360158964,1746582644440,-482.49730075,0.00019575,2]
[360158965,1746582644450,-450.0,0.00019575,2]
[360158966,1746582644459,-290.38686483,0.00019575,2]
[360158967,1746582644467,-2012.41,0.00019575,2]
[360158968,1746582644477,-451.33,0.00019575,2]
[360158969,1746582644486,-528.9050402,0.00019575,2]
[360158970,1746582644495,-685.61,0.00019575,2]
[360158971,1746582644504,-450.0,0.00019575,2]
[360158972,1746582644513,-574.79096244,0.00019575,2]
[360158973,1746582644522,-576.25,0.00019575,2]
[360158974,1746582644532,-486.41937698,0.00019575,2]
[360158975,1746582644541,-1348.17,0.00019575,2]
[360158976,1746582644550,-576.25,0.00019575,2]
[360158977,1746582644559,-1348.17,0.00019575,2]
[360158978,1746582644568,-576.25,0.00019575,2]
[360158979,1746582644578,-2072.07,0.00019575,2]
[360158980,1746582644589,-2072.07,0.00019575,2]
[360158981,1746582644598,-350.22330316,0.00019575,2]
[360158982,1746582644608,-450.0,0.00019575,2]
[360158983,1746582644618,-450.0,0.00019575,2]
[360158984,1746582644628,-450.0,0.00019575,2]
[360158985,1746582644638,-450.0,0.00019575,2]
[360158986,1746582644647,-450.0,0.00019575,2]
[360158987,1746582644658,-489.47490829,0.00019575,2]
[360158988,1746582644667,-212.95552508,0.00019575,2]
[360158989,1746582644677,-515.77,0.00019575,2]
[360158990,1746582644688,-515.77,0.00019575,2]
[360158991,1746582644699,-515.77,0.00019575,2]
[360158992,1746582644708,-936.67,0.00019575,2]
[360158993,1746582644719,-667.95,0.00019575,2]
[360158994,1746582644729,-667.95,0.00019575,2]
[360158995,1746582644740,-501.60279646,0.00019575,2]
[360158996,1746582644749,-673.81,0.00019575,2]
[360158997,1746582644759,-673.81,0.00019575,2]
[360158998,1746582644769,-656.57,0.00019575,2]
[360158999,1746582644778,-656.57,0.00019575,2]
[360159000,1746582644787,-450.0,0.00019575,2]
[360159001,1746582644797,-508.49,0.00019575,2]
[360159002,1746582644807,-508.49,0.00019575,2]
[360159003,1746582644817,-170.79807682,0.00019575,2]
[360159004,1746582644826,-508.49,0.00019575,2]
[360159005,1746582644838,-4584.07,0.00019575,2]
[360159006,1746582644848,-450.0,0.00019575,2]
[360159007,1746582644858,-450.0,0.00019575,2]
[360159008,1746582644867,-249.52730605,0.00019575,2]
[360159009,1746582644876,-35302.81,0.00019575,2]
[360159010,1746582644885,-35302.81,0.00019575,2]
[360159011,1746582644894,-44752.6,0.00019575,2]
[360159012,1746582644903,-450.0,0.00019575,2]
[360159013,1746582644913,-450.0,0.00019575,2]
[360159014,1746582644924,-677.89,0.00019575,2]
[360159015,1746582644934,-677.89,0.00019575,2]
[360159016,1746582644945,-450.0,0.00019575,2]
[360159017,1746582644956,-677.89,0.00019575,2]
[360159018,1746582644965,-450.0,0.00019575,2]
[360159019,1746582644974,-843.02,0.00019575,2]
[360159020,1746582644984,-843.02,0.00019575,2]
[360159021,1746582644994,-2170.86,0.00019575,2]
[360159022,1746582645003,-2170.86,0.00019575,2]
[360159023,1746582645013,-524.86,0.00019575,2]
[360159024,1746582645024,-524.86,0.00019575,2]
[360159025,1746582645033,-450.0,0.00019575,2]
[360159026,1746582645042,-266.01303499,0.00019575,2]
[360159027,1746582645051,-450.0,0.00019575,2]
[360159028,1746582645062,-1030.49,0.00019575,2]
[360159029,1746582645072,-450.0,0.00019575,2]
[360159030,1746582645081,-1030.49,0.00019575,2]
[360159031,1746582645090,-1030.49,0.00019575,2]
[360159032,1746582645099,-572.05069617,0.00019575,2]
[360159033,1746582645109,-590.56690739,0.00019575,2]
[360159034,1746582645119,-450.0,0.00019575,2]
[360159035,1746582645128,-450.0,0.00019575,2]
[360159036,1746582645137,-450.0,0.00019575,2]
[360159037,1746582645146,-342.72738612,0.00019575,2]
[360159038,1746582645155,-450.0,0.00019575,2]
[360159039,1746582645164,-182.60332697,0.00019575,2]
[360159040,1746582645173,-934.11,0.00019575,2]
[360159041,1746582645183,-934.11,0.00019575,2]
[360159042,1746582645192,-450.0,0.00019575,2]
[360159043,1746582645201,-450.0,0.00019575,2]
[360159044,1746582645211,-157.27039203,0.00019575,2]
[360159045,1746582645220,-450.0,0.00019575,2]
[360159046,1746582645229,-585.80227427,0.00019575,2]
[360159047,1746582645239,-482.43,0.00019575,2]
[360159048,1746582645248,-482.43,0.00019575,2]
[360159049,1746582645258,-482.43,0.00019575,2]
[360159050,1746582645270,-450.0,0.00019575,2]
[360159051,1746582645279,-450.0,0.00019575,2]
[360159052,1746582645289,-549.3988792,0.00019575,2]
[360159053,1746582645298,-450.0,0.00019575,2]
[360159054,1746582645309,-536.97154371,0.00019575,2]
[360159055,1746582645318,-2715.06,0.00019575,2]
[360159056,1746582645328,-450.0,0.00019575,2]
[360159057,1746582645337,-450.0,0.00019575,2]
[360159058,1746582645348,-450.0,0.00019575,2]
[360159059,1746582645358,-463.57399547,0.00019575,2]
[360159061,1746582645368,-450.0,0.00019575,2]
[360159063,1746582645378,-609.91,0.00019575,2]
[360159064,1746582645387,-609.91,0.00019575,2]
[360159065,1746582645396,-450.0,0.00019575,2]
[360159066,1746582645406,-515.87102938,0.00019575,2]
[360159067,1746582645415,-450.0,0.00019575,2]
[360159068,1746582645425,-483.23289264,0.00019575,2]
[360159069,1746582645434,-1788.55,0.00019575,2]
[360159070,1746582645443,-450.0,0.00019575,2]
[360159071,1746582645452,-516.21438131,0.00019575,2]
[360159072,1746582645462,-1989.46,0.00019575,2]
[360159073,1746582645471,-1989.46,0.00019575,2]
[360159074,1746582645480,-1989.46,0.00019575,2]
[360159075,1746582645490,-663.6,0.00019575,2]
[360159076,1746582645499,-663.6,0.00019575,2]
[360159077,1746582645509,-9938.79,0.00019575,2]
[360159078,1746582645518,-450.0,0.00019575,2]
[360159079,1746582645527,-450.0,0.00019575,2]
[360159080,1746582645537,-547.02740251,0.00019575,2]
[360159081,1746582645546,-450.0,0.00019575,2]
[360159082,1746582645555,-450.0,0.00019575,2]
[360159083,1746582645564,-229.39701214,0.00019575,2]
[360159084,1746582645573,-1537.94,0.00019575,2]
[360159085,1746582645583,-1456.88,0.00019575,2]
[360159086,1746582645592,-532.87938476,0.00019575,2]
[360159087,1746582645601,-1537.94,0.00019575,2]
[360159088,1746582645610,-226.79037152,0.00019575,2]
[360159089,1746582645621,-1747.78,0.00019575,2]
[360159090,1746582645631,-1747.78,0.00019575,2]
[360159091,1746582645639,-1747.78,0.00019575,2]
[360159092,1746582645650,-450.0,0.00019575,2]
[360159093,1746582645660,-450.0,0.00019575,2]
[360159094,1746582645669,-876.67,0.00019575,2]
[360159095,1746582645678,-450.0,0.00019575,2]
[360159096,1746582645688,-450.0,0.00019575,2]
[360159097,1746582645697,-450.0,0.00019575,2]
[360159098,1746582645706,-1462.7,0.00019575,2]
[360159099,1746582645715,-1462.7,0.00019575,2]
[360159100,1746582645725,-1462.7,0.00019575,2]
[360159101,1746582645735,-462.33571028,0.00019575,2]
[360159102,1746582645744,-588.27679667,0.00019575,2]
[360159103,1746582645753,-477.17,0.00019575,2]
[360159104,1746582645762,-477.17,0.00019575,2]
[360159105,1746582645771,-477.17,0.00019575,2]
[360159106,1746582645781,-1344.99,0.00019575,2]
[360159107,1746582645791,-501.92,0.00019575,2]
[360159108,1746582645800,-450.0,0.00019575,2]
[360159109,1746582645809,-501.92,0.00019575,2]
[360159110,1746582645818,-450.0,0.00019575,2]
[360159111,1746582645827,-475.23021742,0.00019575,2]
[360159112,1746582645837,-450.0,0.00019575,2]
[360159113,1746582645846,-450.0,0.00019575,2]
[360159114,1746582645855,-450.0,0.00019575,2]
[360159115,1746582645864,-1595.73,0.00019575,2]
[360159116,1746582645873,-1595.73,0.00019575,2]
[360159117,1746582645883,-450.0,0.00019575,2]
[360159118,1746582645892,-517.68940036,0.00019575,2]
[360159119,1746582645901,-450.0,0.00019575,2]
[360159120,1746582645910,-450.0,0.00019575,2]
[360159121,1746582646025,-450.0,0.00019575,2]
[360159122,1746582646034,-450.0,0.00019575,2]
[360159123,1746582646044,-450.0,0.00019575,2]
[360159124,1746582646053,-450.0,0.00019575,2]
[360159125,1746582646062,-6881.51,0.00019575,2]
[360159126,1746582646071,-450.0,0.00019575,2]
[360159127,1746582646080,-450.0,0.00019575,2]
[360159128,1746582646089,-450.0,0.00019575,2]
[360159129,1746582646098,-450.0,0.00019575,2]
[360159130,1746582646107,-450.0,0.00019575,2]
[360159131,1746582646116,-450.0,0.00019575,2]
[360159132,1746582646125,-450.0,0.00019575,2]
[360159133,1746582646134,-522.19051959,0.00019575,2]
[360159134,1746582646144,-450.0,0.00019575,2]
[360159135,1746582646153,-772.13,0.00019575,2]
[360159136,1746582646162,-489.91768901,0.00019575,2]
[360159137,1746582646171,-518.72846693,0.00019575,2]
[360159138,1746582646181,-450.0,0.00019575,2]
[360159139,1746582646190,-503.16891568,0.00019575,2]
[360159140,1746582646199,-450.0,0.00019575,2]
[360159141,1746582646208,-450.0,0.00019575,2]
[360159142,1746582646217,-450.0,0.00019575,2]
[360159143,1746582646226,-450.0,0.00019575,2]
[360159144,1746582646237,-534.28,0.00019575,2]
[360159145,1746582646247,-450.0,0.00019575,2]
[360159146,1746582646258,-450.0,0.00019575,2]
[360159147,1746582646267,-748.28,0.00019575,2]
[360159148,1746582646280,-748.28,0.00019575,2]
[360159149,1746582646290,-748.28,0.00019575,2]
[360159150,1746582646300,-222.59158051,0.00019575,2]
[360159151,1746582646309,-450.0,0.00019575,2]
[360159152,1746582646319,-450.0,0.00019575,2]
[360159153,1746582646328,-232.88394307,0.00019575,2]
[360159154,1746582646338,-544.52265287,0.00019575,2]
[360159155,1746582646348,-450.0,0.00019575,2]
[360159156,1746582646358,-810.66,0.00019575,2]
[360159157,1746582646367,-450.0,0.00019575,2]
[360159158,1746582646376,-810.66,0.00019575,2]
[360159159,1746582646386,-450.0,0.00019575,2]
[360159160,1746582646396,-810.66,0.00019575,2]
[360159161,1746582646405,-450.0,0.00019575,2]
[360159162,1746582646415,-500.99371953,0.00019575,2]
[360159163,1746582646424,-569.47,0.00019575,2]
[360159164,1746582646434,-569.47,0.00019575,2]
[360159165,1746582646443,-467.54644824,0.00019575,2]
[360159166,1746582646453,-963.33,0.00019575,2]
[360159167,1746582646463,-963.33,0.00019575,2]
[360159168,1746582646473,-450.0,0.00019575,2]
[360159169,1746582646484,-450.0,0.00019575,2]
[360159170,1746582646493,-536.42003852,0.00019575,2]
[360159171,1746582646503,-450.0,0.00019575,2]
[360159172,1746582646514,-450.0,0.00019575,2]
[360159173,1746582646524,-2931.97,0.00019575,2]
[360159174,1746582646535,-450.0,0.00019575,2]
[360159175,1746582646544,-2931.97,0.00019575,2]
[360159176,1746582646553,-685.58,0.00019575,2]
[360159177,1746582646562,-685.58,0.00019575,2]
[360159178,1746582646572,-685.58,0.00019575,2]
[360159179,1746582646581,-500.93681621,0.00019575,2]
[360159180,1746582646590,-450.0,0.00019575,2]
[360159181,1746582646600,-450.0,0.00019575,2]
[360159182,1746582646609,-465.35101957,0.00019575,2]
[360159183,1746582646619,-482.86248072,0.00019575,2]
[360159184,1746582646628,-450.0,0.00019575,2]
[360159185,1746582646637,-450.0,0.00019575,2]
[360159186,1746582646646,-2217.43,0.00019575,2]
[360159187,1746582646655,-482.05868116,0.00019575,2]
[360159188,1746582646665,-2217.43,0.00019575,2]
[360159189,1746582646674,-2407.57,0.00019575,2]
[360159190,1746582646683,-2407.57,0.00019575,2]
[360159191,1746582646693,-450.0,0.00019575,2]
[360159192,1746582646702,-450.0,0.00019575,2]
[360159193,1746582646711,-578.21417302,0.00019575,2]
[360159194,1746582646721,-553.95162762,0.00019575,2]
[360159195,1746582646730,-450.0,0.00019575,2]
[360159196,1746582646739,-450.0,0.00019575,2]
[360159197,1746582646749,-450.0,0.00019575,2]
[360159198,1746582646758,-450.0,0.00019575,2]
[360159199,1746582646767,-450.0,0.00019575,2]
[360159200,1746582646777,-485.32022779,0.00019575,2]
[360159201,1746582646786,-450.0,0.00019575,2]
[360159202,1746582646795,-450.0,0.00019575,2]
[360159203,1746582646806,-450.0,0.00019575,2]
[360159204,1746582646815,-450.0,0.00019575,2]
[360159205,1746582646825,-450.0,0.00019575,2]
[360159206,1746582646834,-450.0,0.00019575,2]
[360159207,1746582646843,-798.81,0.00019575,2]
[360159208,1746582646853,-450.0,0.00019575,2]
[360159209,1746582646862,-206.37061239,0.00019575,2]
[360159210,1746582646872,-798.81,0.00019575,2]
[360159211,1746582646882,-189.88332806,0.00019575,2]
[360159212,1746582646891,-450.0,0.00019575,2]
[360159213,1746582646900,-450.0,0.00019575,2]
[360159214,1746582646910,-450.0,0.00019575,2]
[360159215,1746582646919,-170.0,0.00019575,2]
[360159216,1746582646928,-450.0,0.00019575,2]
[360159217,1746582646937,-966.19076846,0.00019575,2]
[360159218,1746582646946,-500.0,0.00019575,2]
[360159219,1746582646955,-500.0,0.00019575,2]
[360159220,1746582646964,-457.83388826,0.00019575,2]
[360159221,1746582646974,-450.0,0.00019575,2]
[360159222,1746582646983,-450.0,0.00019575,2]
[360159223,1746582646993,-450.0,0.00019575,2]
[360159224,1746582647002,-457.79,0.00019575,2]
[360159225,1746582647011,-450.0,0.00019575,2]
[360159226,1746582647021,-457.79,0.00019575,2]
[360159227,1746582647030,-450.0,0.00019575,2]
[360159228,1746582647039,-686.0,0.00019576,2]
[360159229,1746582647049,-475.58239405,0.00019576,2]
[360159230,1746582647058,-500.0,0.00019576,2]
[360159231,1746582647067,-500.0,0.00019576,2]
[360159232,1746582647076,-221.67472827,0.00019576,2]
[360159233,1746582647086,-503.64221106,0.00019576,2]
[360159234,1746582647095,-450.0,0.00019576,2]
[360159235,1746582647104,-450.0,0.00019576,2]
[360159236,1746582647114,-155.269491,0.00019576,2]
[360159237,1746582647124,-464.09438568,0.00019576,2]
[360159238,1746582647134,-478.16533058,0.00019576,2]
[360159239,1746582647143,-464.78186667,0.00019576,2]
[360159240,1746582647153,-479.49482604,0.00019576,2]
[360159241,1746582647162,-450.0,0.00019576,2]
[360159242,1746582647173,-572.74476291,0.00019576,2]
[360159243,1746582647183,-450.0,0.00019576,2]
[360159244,1746582647193,-483.33679328,0.00019576,2]
[360159245,1746582647202,-470.76211115,0.00019576,2]
[360159246,1746582647211,-450.0,0.00019576,2]
[360159247,1746582647222,-450.0,0.00019576,2]
[360159248,1746582647231,-286.85352398,0.00019576,2]
[360159249,1746582647241,-513.6228209,0.00019576,2]
[360159250,1746582647250,-450.0,0.00019576,2]
[360159251,1746582647262,-450.0,0.00019576,2]
[360159252,1746582647272,-269.59633555,0.00019576,2]
[360159253,1746582647281,-229.13800937,0.00019576,2]
[360159254,1746582647291,-450.07233365,0.00019576,2]
[360159255,1746582647300,-456.44166274,0.00019576,2]
[360159256,1746582647310,-455.88611133,0.00019576,2]
[360159257,1746582647319,-450.0,0.00019576,2]
[360159258,1746582647329,-450.0,0.00019576,2]
[360159259,1746582647338,-466.10353508,0.00019576,2]
[360159260,1746582647349,-450.0,0.00019576,2]
[360159261,1746582647358,-486.46583353,0.00019576,2]
[360159262,1746582647369,-450.0,0.00019576,2]
[360159263,1746582647378,-469.37639602,0.00019576,2]
[360159264,1746582647387,-450.0,0.00019576,2]
[360159265,1746582647397,-450.0,0.00019576,2]
[360159266,1746582647407,-450.0,0.00019576,2]
[360159267,1746582647416,-450.0,0.00019576,2]
[360159268,1746582647425,-450.0,0.00019576,2]
[360159269,1746582647435,-450.0,0.00019576,2]
[360159270,1746582647444,-450.0,0.00019576,2]
[360159271,1746582647453,-450.0,0.00019576,2]
[360159272,1746582647463,-434.22928393,0.00019576,2]
[360159273,1746582647473,-470.46615772,0.00019576,2]
[360159274,1746582647482,-193.9736146,0.00019576,2]
[360159275,1746582647491,-296.4196941,0.00019576,2]
[360159276,1746582647501,-584.24403105,0.00019576,2]
[360159277,1746582647510,-581.96408841,0.00019576,2]
[360159278,1746582647519,-471.04413946,0.00019576,2]
[360159279,1746582647529,-474.63029224,0.00019576,2]
[360159280,1746582647538,-450.0,0.00019576,2]
[360159281,1746582647547,-450.0,0.00019576,2]
[360159282,1746582647557,-461.62898988,0.00019576,2]
[360159283,1746582647568,-471.23027361,0.00019576,2]
[360159284,1746582647577,-450.0,0.00019576,2]
[360159285,1746582647587,-494.00792827,0.00019576,2]
[360159286,1746582647596,-450.0,0.00019576,2]
[360159287,1746582647605,-450.0,0.00019576,2]
[360159288,1746582647615,-472.07028501,0.00019576,2]
[360159289,1746582647624,-450.0,0.00019576,2]
[360159290,1746582647633,-450.03247207,0.00019576,2]
[360159291,1746582647643,-472.3201689,0.00019576,2]
[360159292,1746582647652,-450.0,0.00019576,2]
[360159293,1746582647661,-272.79925467,0.00019576,2]
[360159294,1746582647670,-450.0,0.00019576,2]
[360159295,1746582647679,-450.0,0.00019576,2]
[360159296,1746582647689,-479.99741608,0.00019576,2]
[360159297,1746582647698,-450.0,0.00019576,2]
[360159298,1746582647708,-468.76355074,0.00019576,2]
[360159299,1746582647718,-549.24911529,0.00019576,2]
[360159300,1746582647728,-453.15714518,0.00019576,2]
[360159301,1746582647738,-450.0,0.00019576,2]
[360159302,1746582647750,-576.20372167,0.00019576,2]
[360159303,1746582647759,-450.0,0.00019576,2]
[360159304,1746582647772,-450.0,0.00019576,2]
[360159305,1746582647783,-450.0,0.00019576,2]
[360159306,1746582647792,-450.0,0.00019576,2]
[360159307,1746582647911,-413.40101381,0.00019576,2]
[360159308,1746582647921,-450.0,0.00019576,2]
[360159309,1746582647930,-456.00308049,0.00019576,2]
[360159310,1746582647939,-464.50087288,0.00019576,2]
[360159311,1746582647949,-454.68554839,0.00019576,2]
[360159312,1746582647958,-450.0,0.00019576,2]
[360159313,1746582647968,-462.49180696,0.00019576,2]
[360159314,1746582647977,-464.26308109,0.00019576,2]
[360159315,1746582647987,-450.0,0.00019576,2]
[360159316,1746582647996,-450.0,0.00019576,2]
[360159317,1746582648005,-216.28696038,0.00019576,2]
[360159318,1746582648015,-450.0,0.00019576,2]
[360159319,1746582648024,-478.75984107,0.00019576,2]
[360159320,1746582648034,-490.59326727,0.00019576,2]
[360159321,1746582648044,-450.0,0.00019576,2]
[360159322,1746582648054,-463.06257308,0.00019576,2]
[360159323,1746582648064,-463.2296619,0.00019576,2]
[360159324,1746582648074,-479.17119916,0.00019576,2]
[360159325,1746582648083,-450.0,0.00019576,2]
[360159326,1746582648092,-466.88696542,0.00019576,2]
[360159327,1746582648102,-479.91821918,0.00019576,2]
[360159328,1746582648112,-450.0,0.00019576,2]
[360159329,1746582648122,-450.0,0.00019576,2]
[360159330,1746582648131,-450.0,0.00019576,2]
[360159331,1746582648141,-450.0,0.00019576,2]
[360159332,1746582648151,-450.0,0.00019576,2]
[360159333,1746582648160,-489.71555238,0.00019576,2]
[360159334,1746582648169,-479.78799067,0.00019576,2]
[360159335,1746582648178,-475.0065075,0.00019576,2]
[360159336,1746582648187,-463.0236071,0.00019576,2]